bitfinex/quotes_SOLUSD_20250811
["timestamp","ask_amount","ask_price","bid_price","bid_amount"]
[1754915701708,17.34994743,179.25,179.2,15.10621557]
[1754915701910,17.60322175,179.25,179.21,41.24]
[1754915702229,18.29322175,179.25,179.21,41.24]
[1754915702394,0.69,179.24,179.21,41.24]
[1754915703004,12.29902693,179.22,179.21,41.24]
[1754915703534,0.69,179.24,179.21,41.24]
[1754915703744,0.69,179.24,179.22,15.10621557]
[1754915705410,0.69,179.24,179.22,20.68592831]
[1754915706032,0.69,179.24,179.22,32.98495524]
[1754915706211,0.69,179.24,179.23,12.29902693]
[1754915706537,0.69,179.24,179.23,27.4052425]
[1754915707296,0.69,179.24,179.23,32.98466558]
[1754915707496,0.69,179.24,179.23,15.10621557]
[1754915707716,0.69,179.24,179.23,56.24621557]
[1754915708109,0.69,179.24,179.23,61.82563865]
[1754915708313,0.03,179.25,179.23,56.24621557]
[1754915708512,0.03,179.25,179.24,15.10621557]
[1754915709395,0.03,179.25,179.24,56.22621557]
[1754915709829,0.03,179.25,179.24,68.5252425]
[1754915710336,0.03,179.25,179.24,56.22621557]
[1754915710999,0.03,179.25,179.24,68.5252425]
[1754915711204,0.03,179.25,179.24,56.22621557]
[1754915713034,13.01902693,179.25,179.24,41.12]
[1754915713204,0.03,179.25,179.24,41.12]
[1754915713932,0.03,179.25,179.24,41.83]
[1754915714103,0.03,179.25,179.24,69.2352425]
[1754915714431,0.03,179.25,179.24,68.5252425]
[1754915714835,0.03,179.25,179.24,74.8143543]
[1754915715129,0.03,179.25,179.24,68.5252425]
[1754915715330,0.03,179.25,179.24,56.22621557]
[1754915715732,13.01902693,179.25,179.14,0.71]
[1754915715910,12.29902693,179.19,179.15,41.14]
[1754915716126,8.15934976,179.22,179.17,8.15934976]
[1754915716320,0.03,179.25,179.18,41.14]
[1754915716521,8.15934976,179.22,179.19,15.10621557]
[1754915716734,8.15934976,179.21,179.2,56.24621557]
[1754915716939,8.84934976,179.21,179.18,15.10621557]
[1754915717131,0.03,179.25,179.13,15.10621557]
[1754915717132,8.15934976,179.19,179.13,15.10621557]
[1754915717327,8.15934976,179.16,179.15,15.10621557]
[1754915718040,8.15934976,179.16,179.15,56.22621557]
[1754915718348,5.7126017,179.19,179.16,15.10621557]
[1754915718513,5.7126017,179.19,179.17,41.12]
[1754915718514,0.69,179.18,179.17,41.12]
[1754915718718,0.69,179.18,179.17,41.1]
[1754915719443,12.85214272,179.18,179.17,41.1]
[1754915720350,12.16214272,179.19,179.17,41.1]
[1754915720719,12.16214272,179.18,179.17,41.1]
[1754915721750,12.87214272,179.18,179.17,41.1]
[1754915722154,17.89502473,179.18,179.17,41.1]
[1754915722446,12.87214272,179.18,179.17,41.1]
[1754915722648,17.89502473,179.18,179.17,41.1]
[1754915722837,12.16214272,179.18,179.17,41.1]
[1754915723748,12.87214272,179.18,179.17,41.1]
[1754915723947,17.89502473,179.18,179.17,41.1]
[1754915724322,12.16214272,179.18,179.17,41.1]
[1754915725233,145.7,179.23,179.18,15.10621557]
[1754915725436,162.88368397,179.23,179.18,27.26835829]
[1754915725653,12.16214272,179.22,179.18,15.79621557]
[1754915725849,12.16214272,179.19,179.18,15.10621557]
[1754915726661,150.72154125,179.23,179.18,15.10621557]
[1754915726662,145.7,179.23,179.18,15.10621557]
[1754915726855,145.7,179.23,179.18,32.84930546]
[1754915727157,12.19214272,179.25,179.2,27.26835829]
[1754915727324,12.19214272,179.25,179.22,15.10621557]
[1754915727530,12.16214272,179.23,179.21,40.98]
[1754915727730,12.87214272,179.22,179.15,0.06]
[1754915727926,12.16214272,179.16,179.15,0.06]
[1754915728160,17.18558545,179.16,179.15,0.06]
[1754915728558,17.89558545,179.16,179.15,0.06]
[1754915728731,17.89558545,179.16,179.14,41.0]
[1754915728936,12.16214272,179.15,179.11,0.06]
[1754915729152,12.16214272,179.12,179.11,0.06]
[1754915729949,17.18670725,179.12,179.11,0.06]
[1754915730750,17.18670725,179.12,179.09,0.06]
[1754915730751,26.0,179.1,179.09,0.06]
[1754915731265,38.16214272,179.1,179.09,0.06]
[1754915732054,43.18726834,179.1,179.09,0.06]
[1754915735438,17.18726834,179.1,179.09,0.06]
[1754915735641,12.16214272,179.1,179.09,0.06]
[1754915736437,12.16214272,179.13,179.09,15.16621557]
[1754915736655,0.71,179.14,179.11,15.10621557]
[1754915736855,12.87214272,179.13,179.11,15.10621557]
[1754915737057,12.16214272,179.12,179.09,41.18]
[1754915737260,12.16214272,179.1,179.09,41.18]
[1754915738459,17.18726834,179.1,179.09,0.06]
[1754915739862,12.16214272,179.1,179.09,0.06]
[1754915740649,0.71,179.13,179.09,0.06]
[1754915740846,0.71,179.13,179.12,12.16214272]
[1754915741046,0.71,179.13,179.12,56.26621557]
[1754915741872,12.87214272,179.13,179.12,41.16]
[1754915742389,12.16214272,179.13,179.12,41.16]
[1754915743359,5.0537871,179.15,179.12,41.16]
[1754915743669,12.16214272,179.13,179.12,41.16]
[1754915744073,0.03,179.15,179.13,15.10621557]
[1754915744753,12.87214272,179.14,179.13,15.10621557]
[1754915744955,140.0,179.13,179.12,41.16]
[1754915745171,152.87214272,179.13,179.12,41.16]
[1754915745548,12.87214272,179.13,179.12,41.16]
[1754915746189,5.73428403,179.13,179.12,41.16]
[1754915746384,17.89642675,179.13,179.12,41.16]
[1754915746757,30.45713684,179.13,179.09,41.2]
[1754915746966,12.16214272,179.1,179.09,41.2]
[1754915747164,12.87214272,179.1,179.05,0.06]
[1754915747371,12.16214272,179.06,179.05,1e-08]
[1754915747592,26.0,179.04,179.03,1e-08]
[1754915747893,38.16214272,179.04,178.97,0.2]
[1754915748068,17.19007568,179.0,178.99,1e-08]
[1754915748475,17.90007568,179.0,178.99,1e-08]
[1754915749787,21.61821002,179.0,178.99,1e-08]
[1754915750161,47.61821002,179.0,178.99,1e-08]
[1754915750367,43.43457903,179.0,178.99,1e-08]
[1754915750663,26.64713603,179.0,178.99,1e-08]
[1754915750983,28.88546203,179.0,178.99,1e-08]
[1754915751165,23.85653602,179.0,178.99,1e-08]
[1754915751782,28.89155523,179.0,178.99,1e-08]
[1754915751990,23.85653602,179.0,178.99,1e-08]
[1754915752291,47.61821002,179.0,178.99,1e-08]
[1754915754282,47.59821002,179.0,178.99,1e-08]
[1754915754788,46.90821002,179.0,178.99,1e-08]
[1754915754964,38.16214272,179.0,178.99,1e-08]
[1754915755164,12.16214272,179.0,178.99,1e-08]
[1754915755758,12.16214272,179.0,178.99,0.67000001]
[1754915755963,12.16214272,179.0,178.99,1e-08]
[1754915756885,17.19007568,179.0,178.99,1e-08]
[1754915757087,21.58794852,179.0,178.99,1e-08]
[1754915757462,0.69,179.03,178.99,1e-08]
[1754915757662,12.16214272,179.0,178.99,1e-08]
[1754915757900,12.16214272,179.0,178.99,0.67000001]
[1754915758095,12.16214272,179.0,178.99,1e-08]
[1754915758585,26.0,179.04,178.99,0.67000001]
[1754915758890,26.0,179.04,178.99,1e-08]
[1754915758891,12.85214272,179.0,178.99,1e-08]
[1754915759180,12.85214272,179.0,178.97,1e-08]
[1754915759181,42.55999797,179.0,178.97,1e-08]
[1754915759384,12.16214272,178.98,178.97,1e-08]
[1754915759575,15.86999797,178.98,178.97,1e-08]
[1754915760162,21.58849277,178.98,178.97,1e-08]
[1754915760585,20.89849277,178.98,178.97,1e-08]
[1754915761287,21.58849277,178.98,178.97,1e-08]
[1754915761487,21.58849277,178.98,178.95,0.06]
[1754915761488,26.0,178.96,178.95,0.06]
[1754915761704,54.03214069,178.96,178.93,0.06]
[1754915761865,24.32428544,178.94,178.91,0.06]
[1754915762065,28.03214069,178.93,178.91,0.06]
[1754915762264,59.75204065,178.93,178.91,0.06]
[1754915762570,28.72214069,178.92,178.91,1e-08]
[1754915762768,26.0,178.89,178.87,0.06]
[1754915762989,41.86286225,178.89,178.87,1e-08]
[1754915763204,26.0,178.85,178.79,0.2]
[1754915763402,12.16214272,178.8,178.79,0.2]
[1754915763608,15.85807052,178.8,178.79,0.2]
[1754915764098,12.16214272,178.8,178.79,0.2]
[1754915764284,29.35784248,178.8,178.79,0.2]
[1754915764472,45.63289931,178.8,178.69,46.69599446]
[1754915764796,12.16214272,178.7,178.69,46.69599446]
[1754915764982,5.03355704,178.8,178.69,46.69599446]
[1754915765288,12.16214272,178.7,178.69,41.1]
[1754915765597,12.16214272,178.74,178.7,15.10621557]
[1754915765768,12.16214272,178.71,178.69,41.1]
[1754915765968,12.16214272,178.7,178.69,41.1]
[1754915766189,5.03440174,178.77,178.69,46.69628406]
[1754915766499,12.16214272,178.7,178.69,41.1]
[1754915766871,12.16214272,178.7,178.66,15.10621557]
[1754915767068,12.16214272,178.67,178.65,0.06]
[1754915767289,12.16214272,178.66,178.65,0.06]
[1754915767493,26.0,178.74,178.65,0.06]
[1754915767675,12.16214272,178.66,178.65,0.06]
[1754915768793,8.71356128,178.72,178.65,0.06]
[1754915769020,0.69,178.68,178.67,27.26835829]
[1754915769188,8.71356128,178.72,178.67,27.26835829]
[1754915769189,0.69,178.71,178.67,27.26835829]
[1754915769368,12.85214272,178.68,178.67,15.10621557]
[1754915769574,140.0,178.67,178.66,41.14]
[1754915769874,152.85214272,178.67,178.66,41.14]
[1754915770074,12.85214272,178.67,178.66,41.14]
[1754915770418,12.85214272,178.67,178.66,39.7]
[1754915770712,12.85214272,178.67,178.63,0.06]
[1754915770713,17.88936217,178.67,178.63,0.06]
[1754915770889,12.16214272,178.64,178.63,5.6581638]
[1754915771068,0.69,178.66,178.63,5.6581638]
[1754915771276,8.33659142,178.71,178.63,5.6581638]
[1754915771478,12.16214272,178.64,178.63,0.06]
[1754915771890,12.85214272,178.64,178.63,0.06]
[1754915772685,12.16214272,178.64,178.63,0.06]
[1754915772886,8.33659142,178.71,178.63,0.06]
[1754915772887,12.16214272,178.67,178.63,0.06]
[1754915773088,8.33659142,178.71,178.63,0.06]
[1754915773089,12.16214272,178.66,178.64,15.10621557]
[1754915773288,12.16214272,178.65,178.64,15.10621557]
[1754915773496,0.69,178.69,178.64,15.10621557]
[1754915773676,12.16214272,178.69,178.64,15.77621557]
[1754915773876,12.85214272,178.69,178.64,15.77621557]
[1754915774077,8.33659142,178.71,178.67,15.10621557]
[1754915774292,8.33659142,178.71,178.68,5.59659726]
[1754915774502,12.85214272,178.7,178.68,5.59659726]
[1754915774804,8.33659142,178.71,178.68,46.73659726]
[1754915774987,8.33659142,178.71,178.69,15.10621557]
[1754915775498,8.33659142,178.71,178.69,27.93835829]
[1754915775695,12.16214272,178.76,178.72,15.10621557]
[1754915775881,12.85214272,178.77,178.73,41.14]
[1754915776082,12.16214272,178.76,178.73,41.14]
[1754915776301,12.16214272,178.76,178.74,5.59471858]
[1754915776605,12.16214272,178.82,178.75,53.93835829]
[1754915776821,12.16214272,178.82,178.77,12.16214272]
[1754915776998,12.16214272,178.81,178.78,41.16]
[1754915777198,12.85214272,178.82,178.78,41.16]
[1754915777388,12.16214272,178.84,178.79,27.93835829]
[1754915777590,12.16214272,178.8,178.76,15.10621557]
[1754915777799,13.42569563,178.86,178.79,41.14]
[1754915778391,0.69,178.85,178.79,41.14]
[1754915778800,12.16214272,178.8,178.79,41.14]
[1754915779882,8.39369212,178.86,178.79,46.73315397]
[1754915780103,12.16214272,178.82,178.79,46.73315397]
[1754915780314,12.16214272,178.8,178.79,41.14]
[1754915780483,12.16214272,178.81,178.79,46.73312878]
[1754915780684,20.55583484,178.86,178.8,27.96835829]
[1754915780909,8.39369212,178.86,178.82,12.16214272]
[1754915781102,8.39369212,178.86,178.81,41.10621557]
[1754915781103,8.39369212,178.86,178.85,15.10621557]
[1754915781406,8.39369212,178.86,178.85,27.96835829]
[1754915781781,8.39369212,178.86,178.85,69.16835829]
[1754915782299,8.39369212,178.86,178.85,74.75963589]
[1754915783521,8.39369212,178.86,178.85,62.59749317]
[1754915783811,8.39369212,178.86,178.85,59.55963589]
[1754915783991,8.39369212,178.86,178.85,100.71963589]
[1754915784500,0.03,178.9,178.89,41.10621557]
[1754915784810,0.03,178.9,178.89,94.42835829]
[1754915785126,0.03,178.9,178.89,82.26621557]
[1754915785414,0.03,178.9,178.89,95.12835829]
[1754915785617,0.03,178.9,178.89,82.26621557]
[1754915785792,0.03,178.9,178.89,56.26621557]
[1754915785997,12.86214272,178.9,178.84,12.16214272]
[1754915786185,0.03,178.9,178.88,15.10621557]
[1754915786393,0.03,178.9,178.89,56.24621557]
[1754915787007,0.03,178.9,178.89,73.99838568]
[1754915787200,0.03,178.9,178.89,74.69838568]
[1754915787422,0.03,178.9,178.89,56.24621557]
[1754915787892,0.03,178.9,178.89,74.69838568]
[1754915788096,0.03,178.9,178.89,62.53624296]
[1754915788291,0.03,178.9,178.89,74.65838568]
[1754915788592,1e-08,178.92,178.91,41.10621557]
[1754915788818,1e-08,178.92,178.91,53.26835829]
[1754915789004,1e-08,178.92,178.91,53.96835829]
[1754915789197,1e-08,178.92,178.91,69.06835829]
[1754915789394,1e-08,178.92,178.91,69.62729853]
[1754915789718,1e-08,178.92,178.91,69.06835829]
[1754915790094,1e-08,178.92,178.91,56.18621557]
[1754915790290,1e-08,178.92,178.91,82.18621557]
[1754915791291,12.16214273,178.92,178.86,17.75307466]
[1754915791505,0.67,178.91,178.88,15.10621557]
[1754915791724,12.83214272,178.9,178.89,56.18621557]
[1754915792025,12.83214272,178.9,178.89,41.08]
[1754915792394,17.86288615,178.9,178.89,41.08]
[1754915793737,17.86288615,178.9,178.81,15.10621557]
[1754915793906,152.16214272,178.83,178.82,56.16621557]
[1754915794109,140.0,178.83,178.82,56.16621557]
[1754915796935,12.83214272,178.83,178.82,41.06]
[1754915797125,17.86485535,178.83,178.75,20.70054613]
[1754915797332,12.16214272,178.78,178.77,15.10621557]
[1754915797727,0.67,178.78,178.77,41.04]
[1754915798031,12.83214272,178.78,178.77,41.04]
[1754915798239,12.16214272,178.78,178.77,41.04]
[1754915798680,17.86626286,178.78,178.77,41.04]
[1754915799142,12.83214272,178.78,178.77,41.04]
[1754915799327,12.16214272,178.78,178.77,41.04]
[1754915799754,12.16214272,178.78,178.77,56.14621557]
[1754915799961,31.03214984,178.85,178.77,56.14621557]
[1754915799962,0.67,178.83,178.78,15.10621557]
[1754915800258,0.67,178.83,178.79,41.04]
[1754915800444,12.16214272,178.8,178.79,56.14621557]
[1754915800646,12.16214272,178.81,178.79,56.14621557]
[1754915800869,12.83214272,178.8,178.79,41.04]
[1754915801747,12.83214272,178.8,178.77,41.04]
[1754915801947,12.16214272,178.78,178.77,41.04]
[1754915802448,12.16214272,178.79,178.77,41.04]
[1754915803047,12.83214272,178.78,178.77,41.04]
[1754915803754,12.83214272,178.78,178.75,41.02]
[1754915804067,12.16214272,178.76,178.75,41.02]
[1754915804242,12.16214272,178.76,178.73,0.06]
[1754915804570,12.16214272,178.77,178.74,56.12621557]
[1754915804747,12.16214272,178.76,178.73,0.06]
[1754915805072,12.16214272,178.76,178.74,41.02]
[1754915805073,12.16214272,178.75,178.74,41.02]
[1754915805543,12.83214272,178.75,178.74,41.02]
[1754915805867,12.83214272,178.75,178.73,0.06]
[1754915806192,152.83214272,178.74,178.73,0.06]
[1754915806664,12.83214272,178.74,178.73,0.06]
[1754915806867,17.86738944,178.74,178.73,0.06]
[1754915807558,17.86738944,178.74,178.73,1e-08]
[1754915807862,17.86738944,178.74,178.71,1e-08]
[1754915808068,12.16214272,178.72,178.71,1e-08]
[1754915808951,5.03504584,178.75,178.71,1e-08]
[1754915809271,12.16214272,178.72,178.71,1e-08]
[1754915809456,12.83214272,178.72,178.71,1e-08]
[1754915810944,56.45747843,178.72,178.67,0.06]
[1754915811148,12.16214272,178.68,178.67,0.06]
[1754915811454,0.69,178.71,178.67,0.06]
[1754915811662,12.16214272,178.68,178.67,0.06]
[1754915813173,17.88908026,178.68,178.67,0.06]
[1754915814366,22.1590085,178.68,178.67,0.06]
[1754915814571,22.1590085,178.68,178.65,0.06]
[1754915814777,8.21603548,178.66,178.65,0.06]
[1754915815291,13.25353687,178.66,178.65,0.06]
[1754915815791,13.94353687,178.66,178.65,0.06]
[1754915816689,8.21603548,178.66,178.65,0.06]
[1754915817548,13.94353687,178.66,178.65,0.06]
[1754915817751,26.0,178.64,178.63,0.06]
[1754915817957,34.21603548,178.64,178.63,0.06]
[1754915818161,34.90603548,178.64,178.63,0.06]
[1754915818377,8.21603548,178.64,178.63,0.06]
[1754915818953,5.03693754,178.68,178.63,0.06]
[1754915819250,8.21603548,178.64,178.63,0.06]
[1754915819692,26.0,178.68,178.63,0.74]
[1754915819863,8.21603548,178.64,178.63,0.06]
[1754915820051,26.69,178.68,178.63,0.06]
[1754915820253,12.58995961,178.72,178.63,0.74]
[1754915820254,0.69,178.72,178.63,0.74]
[1754915820454,2.94724627,178.74,178.68,12.23295914]
[1754915820455,0.03,178.74,178.68,12.23295914]
[1754915820679,0.03,178.74,178.69,12.91295914]
[1754915820878,0.03,178.74,178.7,15.10621557]
[1754915821085,0.03,178.74,178.71,17.8286169]
[1754915821257,0.03,178.74,178.71,6.27565776]
[1754915821578,0.03,178.74,178.73,15.10621557]
[1754915821794,0.03,178.78,178.74,15.10621557]
[1754915822081,0.03,178.78,178.74,56.84621557]
[1754915822283,0.03,178.8,178.78,15.10621557]
[1754915822461,12.26295914,178.8,178.68,10.0]
[1754915822664,12.26295914,178.8,178.78,0.68]
[1754915823285,12.26295914,178.8,178.79,0.68]
[1754915823286,0.03,178.8,178.79,0.68]
[1754915823461,0.03,178.8,178.79,28.01917471]
[1754915823697,5.0313059,178.88,178.8,15.10621557]
[1754915823850,5.0313059,178.88,178.79,12.91295914]
[1754915823851,17.26426504,178.88,178.84,15.10621557]
[1754915824176,17.26374616,178.9,178.85,0.68]
[1754915824388,21.64254634,178.91,178.86,12.91295914]
[1754915824701,9.4095872,178.91,178.87,41.78]
[1754915824851,9.4095872,178.91,178.88,15.78621557]
[1754915825064,21.64254634,178.91,178.89,0.68]
[1754915825301,12.23295914,178.9,178.88,15.10621557]
[1754915825490,9.4095872,178.91,178.89,0.68]
[1754915825672,9.4095872,178.91,178.88,15.10621557]
[1754915825673,12.23295914,178.9,178.88,15.10621557]
[1754915825876,12.23295914,178.9,178.87,41.1]
[1754915826170,12.23295914,178.88,178.87,41.1]
[1754915826601,9.4095872,178.91,178.88,15.10621557]
[1754915827082,17.26398379,178.89,178.87,41.1]
[1754915827390,12.23295914,178.88,178.87,41.1]
[1754915827595,12.23295914,178.88,178.84,0.68]
[1754915827799,5.03102465,178.89,178.84,41.08]
[1754915827800,12.23295914,178.86,178.84,41.08]
[1754915827962,12.23295914,178.85,178.84,41.08]
[1754915828470,12.92295914,178.85,178.7,10.0]
[1754915828668,12.23295914,178.76,178.74,0.68]
[1754915828902,26.0,178.81,178.63,0.61981638]
[1754915828903,12.23295914,178.75,178.71,0.68]
[1754915829196,0.69,178.8,178.71,0.68]
[1754915829197,12.23295914,178.72,178.71,0.68]
[1754915829404,12.23295914,178.72,178.71,41.14]
[1754915829699,12.92295914,178.78,178.71,41.14]
[1754915829700,12.23295914,178.74,178.72,15.10621557]
[1754915830003,5.72383858,178.79,178.72,15.10621557]
[1754915830206,12.23295914,178.73,178.72,15.10621557]
[1754915830502,140.0,178.72,178.71,41.14]
[1754915830713,152.23295914,178.72,178.71,41.14]
[1754915831020,12.23295914,178.74,178.71,56.92621557]
[1754915831167,12.23295914,178.74,178.71,56.24621557]
[1754915831368,12.23295914,178.74,178.72,0.68]
[1754915831604,12.23295914,178.73,178.71,56.24621557]
[1754915831818,12.23295914,178.72,178.71,41.14]
[1754915832475,26.0,178.75,178.71,41.14]
[1754915832677,12.23295914,178.72,178.71,41.14]
[1754915832919,0.69,178.78,178.71,41.82]
[1754915833073,12.23295914,178.74,178.71,41.82]
[1754915833274,12.23295914,178.75,178.72,0.68]
[1754915833502,12.23295914,178.75,178.73,0.68]
[1754915833730,0.69,178.81,178.73,0.68]
[1754915833731,0.69,178.81,178.74,15.10621557]
[1754915834017,0.69,178.81,178.75,41.12]
[1754915834171,12.23295914,178.77,178.75,41.12]
[1754915834368,12.23295914,178.79,178.76,0.68]
[1754915834572,5.72262921,178.84,178.76,0.68]
[1754915834894,12.23295914,178.77,178.75,41.12]
[1754915835096,146.39,178.83,178.75,41.12]
[1754915835097,0.69,178.81,178.75,41.12]
[1754915835299,12.23295914,178.78,178.75,46.71433369]
[1754915835479,12.23295914,178.77,178.75,41.12]
[1754915835876,12.23295914,178.76,178.75,41.12]
[1754915836125,12.92295914,178.76,178.73,41.1]
[1754915836272,12.23295914,178.74,178.73,41.1]
[1754915836607,12.23295914,178.75,178.73,41.1]
[1754915836822,12.23295914,178.75,178.73,41.78]
[1754915836978,0.03,178.8,178.74,0.68]
[1754915837178,12.23295914,178.78,178.74,6.27455447]
[1754915837377,12.23295914,178.75,178.73,41.1]
[1754915837698,12.23295914,178.74,178.73,41.1]
[1754915837995,0.69,178.78,178.73,41.1]
[1754915837996,26.0,178.76,178.73,41.1]
[1754915838199,12.23295914,178.74,178.73,41.1]
[1754915838973,12.92295914,178.74,178.69,0.06]
[1754915839178,12.23295914,178.7,178.69,0.06]
[1754915839400,12.23295914,178.7,178.69,41.18]
[1754915840312,17.26933295,178.7,178.69,41.18]
[1754915840689,17.92933295,178.7,178.69,41.18]
[1754915840893,17.92933295,178.7,178.69,0.06]
[1754915841587,17.92933295,178.7,178.63,0.06]
[1754915841588,30.52026747,178.7,178.63,0.06]
[1754915841798,12.23295914,178.64,178.63,0.06]
[1754915842306,12.89295914,178.64,178.63,0.06]
[1754915842686,12.23295914,178.64,178.63,0.06]
[1754915843824,17.27102452,178.64,178.63,0.06]
[1754915844200,17.93102452,178.64,178.63,0.06]
[1754915844409,17.27102452,178.64,178.63,0.06]
[1754915844900,17.93102452,178.64,178.63,0.06]
[1754915845104,26.0,178.65,178.63,0.06]
[1754915845321,26.0,178.68,178.63,0.06]
[1754915845519,0.66,178.7,178.63,41.1]
[1754915845715,12.23295914,178.65,178.64,0.7]
[1754915845913,140.0,178.64,178.63,41.1]
[1754915846131,152.23295914,178.64,178.63,41.1]
[1754915846313,152.89295914,178.64,178.63,0.06]
[1754915846507,12.89295914,178.64,178.63,0.06]
[1754915847110,12.23295914,178.64,178.63,0.06]
[1754915847314,5.03751515,178.66,178.63,0.06]
[1754915847498,12.23295914,178.64,178.63,0.06]
[1754915848103,145.7,178.66,178.63,41.84]
[1754915848319,12.23295914,178.64,178.63,41.14]
[1754915848503,145.7,178.66,178.63,41.14]
[1754915848704,26.0,178.7,178.63,41.14]
[1754915848705,145.7,178.7,178.64,15.10621557]
[1754915848929,12.23295914,178.69,178.64,27.33917471]
[1754915849155,0.66,178.76,178.66,27.33917471]
[1754915849449,12.23295914,178.72,178.69,15.10621557]
[1754915849608,12.23295914,178.72,178.69,0.7]
[1754915849810,12.23295914,178.7,178.67,41.12]
[1754915850119,12.23295914,178.68,178.67,41.14]
[1754915850922,12.89295914,178.68,178.64,41.16]
[1754915851111,12.23295914,178.65,178.64,41.16]
[1754915851525,26.66,178.71,178.64,41.16]
[1754915851809,12.23295914,178.66,178.64,41.16]
[1754915852023,12.23295914,178.67,178.64,41.16]
[1754915852228,12.23295914,178.66,178.64,41.16]
[1754915852546,140.0,178.64,178.61,1e-08]
[1754915852714,12.23295914,178.62,178.59,15.10621557]
[1754915852911,12.23295914,178.6,178.58,41.14]
[1754915853222,5.03975809,178.58,178.53,66.5]
[1754915853420,5.03975809,178.58,178.54,41.18]
[1754915853421,12.23295914,178.57,178.54,41.18]
[1754915853624,5.03975809,178.58,178.54,0.7]
[1754915853625,12.23295914,178.55,178.54,0.7]
[1754915853830,5.03975809,178.58,178.56,15.10621557]
[1754915854029,12.23295914,178.57,178.55,0.7]
[1754915854223,12.23295914,178.64,178.55,0.7]
[1754915854427,26.66,178.66,178.56,15.10621557]
[1754915854639,12.23295914,178.63,178.58,12.23295914]
[1754915854863,0.66,178.66,178.62,27.33917471]
[1754915855016,0.66,178.66,178.63,41.18]
[1754915855215,145.7,178.73,178.63,41.18]
[1754915855216,0.66,178.65,178.63,46.77794761]
[1754915855417,12.23295914,178.64,178.63,41.18]
[1754915855629,0.66,178.65,178.64,15.10621557]
[1754915855825,5.03445283,178.77,178.65,26.0]
[1754915856035,12.23295914,178.72,178.68,15.10621557]
[1754915856239,12.23295914,178.73,178.69,41.24]
[1754915856459,0.03,178.8,178.69,41.24]
[1754915856460,5.06370311,178.8,178.7,15.10621557]
[1754915856619,0.03,178.8,178.72,12.23295914]
[1754915856819,0.03,178.8,178.76,12.23295914]
[1754915857026,0.03,178.8,178.78,27.33917471]
[1754915857249,0.03,178.8,178.79,61.97936954]
[1754915857430,0.03,178.8,178.79,56.38621557]
[1754915857746,12.26295914,178.8,178.79,41.28]
[1754915858245,12.26295914,178.8,178.79,41.98]
[1754915858448,12.26295914,178.8,178.79,41.28]
[1754915859576,17.29651618,178.8,178.73,0.7]
[1754915859728,12.23295914,178.78,178.75,41.34]
[1754915859933,12.23295914,178.76,178.72,41.34]
[1754915860160,12.23295914,178.73,178.72,41.34]
[1754915860460,12.23295914,178.73,178.66,20.70339629]
[1754915860461,12.23295914,178.73,178.69,41.34]
[1754915860635,12.23295914,178.7,178.69,41.34]
[1754915860833,12.23295914,178.7,178.66,41.32]
[1754915861052,26.0,178.75,178.67,0.7]
[1754915861263,12.23295914,178.68,178.66,41.32]
[1754915861465,12.23295914,178.67,178.66,42.02]
[1754915862627,150.73552845,178.73,178.66,42.02]
[1754915862827,12.23295914,178.68,178.67,0.7]
[1754915864335,5.03617075,178.71,178.67,0.7]
[1754915864535,145.7,178.73,178.68,0.7]
[1754915864846,145.7,178.73,178.67,20.70308332]
[1754915865360,5.03466207,178.77,178.67,32.93604246]
[1754915865539,5.03466207,178.77,178.66,41.32]
[1754915865540,5.03412014,178.78,178.7,5.5959709]
[1754915865735,5.6938711,178.79,178.71,56.36621557]
[1754915865976,12.23295914,178.72,178.71,56.36621557]
[1754915866142,12.23295914,178.73,178.71,56.36621557]
[1754915866537,12.23295914,178.72,178.71,56.36621557]
[1754915866847,12.23295914,178.73,178.71,57.06621557]